[Event "Titled Tuesday Blitz August 22 Early 2023"]
[White "Jia, Haoxiang"]
[Black "Wimalasuriya, Kasun M."]
[WhiteFideId "8602999"]
[BlackFideId "9906789"]
[WhiteElo "2582"]
[BlackElo "2287"]
[Result "1-0"]
[Round "1"]
[TimeControl "180+1"]
[Date "2023.08.22"]
[WhiteClock "0:00:06"]
[BlackClock "0:00:12"]
[Board "184"]

1. d4 {[%clk 0:02:53]}  Nf6 {[%clk 0:02:59]} 2. Bf4 {[%clk 0:02:53]}  c5 {[%clk 0:02:57]} 3. d5 {[%clk 0:02:52]}  d6 {[%clk 0:02:57]} 4. Nc3 {[%clk 0:02:48]}  e5 {[%clk 0:02:57]} 5. dxe6 {[%clk 0:02:41]}  Bxe6 {[%clk 0:02:57]} 6. Nf3 {[%clk 0:02:40]}  Nc6 {[%clk 0:02:56]} 7. e4 {[%clk 0:02:36]}  Be7 {[%clk 0:02:54]} 8. Be2 {[%clk 0:02:31]}  O-O {[%clk 0:02:54]} 9. O-O {[%clk 0:02:29]}  d5 {[%clk 0:02:54]} 10. Ng5 {[%clk 0:02:02]}  d4 {[%clk 0:02:46]} 11. Nb5 {[%clk 0:01:55]}  Bd7 {[%clk 0:02:35]} 12. Bf3 {[%clk 0:01:28]}  a6 {[%clk 0:02:34]} 13. Na3 {[%clk 0:01:28]}  h6 {[%clk 0:02:34]} 14. Nh3 {[%clk 0:01:27]}  Be6 {[%clk 0:02:33]} 15. Bg3 {[%clk 0:01:25]}  Qd7 {[%clk 0:02:28]} 16. Nf4 {[%clk 0:01:25]}  Ne5 {[%clk 0:02:23]} 17. Nxe6 {[%clk 0:01:23]}  Nxf3+ {[%clk 0:02:22]} 18. Qxf3 {[%clk 0:01:24]}  Qxe6 {[%clk 0:02:16]} 19. Rfe1 {[%clk 0:01:23]}  Rfd8 {[%clk 0:02:14]} 20. b3 {[%clk 0:01:21]}  Rac8 {[%clk 0:02:14]} 21. Nc4 {[%clk 0:01:20]}  b5 {[%clk 0:02:14]} 22. Ne5 {[%clk 0:01:14]}  Bd6 {[%clk 0:02:13]} 23. Nd3 {[%clk 0:01:14]}  Bxg3 {[%clk 0:02:12]} 24. Qxg3 {[%clk 0:01:14]}  Nxe4 {[%clk 0:01:58]} 25. Qf4 {[%clk 0:01:07]}  f5 {[%clk 0:01:38]} 26. f3 {[%clk 0:01:04]}  Re8 {[%clk 0:01:25]} 27. fxe4 {[%clk 0:00:51]}  fxe4 {[%clk 0:01:24]} 28. Nf2 {[%clk 0:00:52]}  e3 {[%clk 0:01:24]} 29. Nd3 {[%clk 0:00:49]}  c4 {[%clk 0:01:24]} 30. bxc4 {[%clk 0:00:49]}  bxc4 {[%clk 0:01:24]} 31. Nb2 {[%clk 0:00:37]}  Rcd8 {[%clk 0:01:20]} 32. Rad1 {[%clk 0:00:35]}  Rf8 {[%clk 0:00:58]} 33. Qh4 {[%clk 0:00:26]}  e2 {[%clk 0:00:57]} 34. Rc1 {[%clk 0:00:14]}  d3 {[%clk 0:00:56]} 35. Qxc4 {[%clk 0:00:13]}  Qxc4 {[%clk 0:00:33]} 36. Nxc4 {[%clk 0:00:12]}  d2 {[%clk 0:00:33]} 37. Nxd2 {[%clk 0:00:12]}  Rxd2 {[%clk 0:00:34]} 38. a3 {[%clk 0:00:09]}  Rc8 {[%clk 0:00:27]} 39. c4 {[%clk 0:00:09]}  Rc5 {[%clk 0:00:27]} 40. Kf2 {[%clk 0:00:09]}  Ra2 {[%clk 0:00:21]} 41. Rxe2 {[%clk 0:00:09]}  Rxa3 {[%clk 0:00:21]} 42. Re6 {[%clk 0:00:09]}  Ra4 {[%clk 0:00:20]} 43. Re4 {[%clk 0:00:05]}  a5 {[%clk 0:00:20]} 44. Ke3 {[%clk 0:00:06]}  Ra2 {[%clk 0:00:19]} 45. Kd4 {[%clk 0:00:06]}  Rc7 {[%clk 0:00:18]} 46. c5 {[%clk 0:00:06]}  Ra4+ {[%clk 0:00:16]} 47. Kd5 {[%clk 0:00:06]}  Rxe4 {[%clk 0:00:17]} 48. Kxe4 {[%clk 0:00:07]}  Kf7 {[%clk 0:00:17]} 49. Kd5 {[%clk 0:00:07]}  Ke7 {[%clk 0:00:18]} 50. Ra1 {[%clk 0:00:06]}  Ra7 {[%clk 0:00:17]} 51. Re1+ {[%clk 0:00:06]}  Kd7 {[%clk 0:00:17]} 52. c6+ {[%clk 0:00:06]}  Kc8 {[%clk 0:00:17]} 53. Kd6 {[%clk 0:00:06]}  Rf7 {[%clk 0:00:12]} 54. Re8# {[%clk 0:00:06]} 1-0


[Site "https://www.chess.com"]

[Event "Titled Tuesday Blitz August 22 Early 2023"]
[White "Simonovic, Miroslav"]
[Black "Ribeiro, Matheus Mendes Domingues"]
[WhiteFideId "919152"]
[BlackFideId "324226923"]
[WhiteElo "2277"]
[BlackElo "2581"]
[Result "0-1"]
[Round "1"]
[TimeControl "180+1"]
[Date "2023.08.22"]
[WhiteClock "0:00:05"]
[BlackClock "0:00:12"]
[Board "185"]

1. d4 {[%clk 0:03:00]}  d5 {[%clk 0:02:59]} 2. Bg5 {[%clk 0:03:01]}  Nf6 {[%clk 0:02:56]} 3. Bxf6 {[%clk 0:03:01]}  exf6 {[%clk 0:02:57]} 4. c4 {[%clk 0:03:01]}  c6 {[%clk 0:02:57]} 5. cxd5 {[%clk 0:03:01]}  Qxd5 {[%clk 0:02:54]} 6. Nc3 {[%clk 0:03:01]}  Bb4 {[%clk 0:02:54]} 7. e3 {[%clk 0:03:01]}  O-O {[%clk 0:02:54]} 8. Ne2 {[%clk 0:02:58]}  Bg4 {[%clk 0:02:40]} 9. Qd2 {[%clk 0:02:47]}  Bxc3 {[%clk 0:02:35]} 10. Nxc3 {[%clk 0:02:45]}  Qd7 {[%clk 0:02:24]} 11. Be2 {[%clk 0:02:42]}  Bxe2 {[%clk 0:02:24]} 12. Qxe2 {[%clk 0:02:41]}  Na6 {[%clk 0:02:24]} 13. a3 {[%clk 0:02:40]}  Nc7 {[%clk 0:02:23]} 14. Qc4 {[%clk 0:02:30]}  Rfe8 {[%clk 0:02:17]} 15. O-O {[%clk 0:02:29]}  Qe6 {[%clk 0:02:03]} 16. b3 {[%clk 0:02:24]}  h6 {[%clk 0:01:55]} 17. Rab1 {[%clk 0:02:14]}  a5 {[%clk 0:01:53]} 18. a4 {[%clk 0:02:04]}  Na6 {[%clk 0:01:49]} 19. Na2 {[%clk 0:01:49]}  Rab8 {[%clk 0:01:33]} 20. Rfc1 {[%clk 0:01:49]}  Rec8 {[%clk 0:01:28]} 21. b4 {[%clk 0:01:36]}  axb4 {[%clk 0:00:53]} 22. Nxb4 {[%clk 0:01:37]}  Nc7 {[%clk 0:00:49]} 23. g3 {[%clk 0:01:20]}  Ra8 {[%clk 0:00:43]} 24. Nd3 {[%clk 0:01:06]}  b5 {[%clk 0:00:28]} 25. Qxc6 {[%clk 0:01:02]}  bxa4 {[%clk 0:00:22]} 26. Qxe6 {[%clk 0:00:30]}  fxe6 {[%clk 0:00:23]} 27. Ra1 {[%clk 0:00:30]}  a3 {[%clk 0:00:17]} 28. Nc5 {[%clk 0:00:23]}  Na6 {[%clk 0:00:08]} 29. Rxa3 {[%clk 0:00:13]}  Nxc5 {[%clk 0:00:06]} 30. Rxa8 {[%clk 0:00:13]}  Rxa8 {[%clk 0:00:06]} 31. dxc5 {[%clk 0:00:12]}  e5 {[%clk 0:00:05]} 32. e4 {[%clk 0:00:12]}  Kf7 {[%clk 0:00:04]} 33. Kg2 {[%clk 0:00:12]}  Ke6 {[%clk 0:00:04]} 34. Rc2 {[%clk 0:00:11]}  Ra4 {[%clk 0:00:04]} 35. Kf3 {[%clk 0:00:11]}  Ra3+ {[%clk 0:00:04]} 36. Ke2 {[%clk 0:00:12]}  Ra4 {[%clk 0:00:04]} 37. f3 {[%clk 0:00:12]}  g6 {[%clk 0:00:04]} 38. h4 {[%clk 0:00:12]}  h5 {[%clk 0:00:04]} 39. Rc3 {[%clk 0:00:11]}  Kd7 {[%clk 0:00:04]} 40. Ke3 {[%clk 0:00:12]}  Kc6 {[%clk 0:00:05]} 41. Kd3 {[%clk 0:00:11]}  Ra5 {[%clk 0:00:05]} 42. g4 {[%clk 0:00:10]}  Rxc5 {[%clk 0:00:04]} 43. Ra3 {[%clk 0:00:09]}  Rb5 {[%clk 0:00:04]} 44. Ra6+ {[%clk 0:00:09]}  Rb6 {[%clk 0:00:04]} 45. Rxb6+ {[%clk 0:00:09]}  Kxb6 {[%clk 0:00:05]} 46. gxh5 {[%clk 0:00:09]}  gxh5 {[%clk 0:00:05]} 47. Ke3 {[%clk 0:00:09]}  Kc5 {[%clk 0:00:05]} 48. f4 {[%clk 0:00:10]}  Kc4 {[%clk 0:00:05]} 49. fxe5 {[%clk 0:00:02]}  fxe5 {[%clk 0:00:06]} 50. Ke2 {[%clk 0:00:02]}  Kd4 {[%clk 0:00:06]} 51. Kf3 {[%clk 0:00:03]}  Kd3 {[%clk 0:00:06]} 52. Kf2 {[%clk 0:00:03]}  Kxe4 {[%clk 0:00:07]} 53. Ke2 {[%clk 0:00:04]}  Kf4 {[%clk 0:00:07]} 54. Kf2 {[%clk 0:00:04]}  Kg4 {[%clk 0:00:08]} 55. Ke3 {[%clk 0:00:04]}  Kxh4 {[%clk 0:00:09]} 56. Ke4 {[%clk 0:00:05]}  Kg3 {[%clk 0:00:09]} 57. Kxe5 {[%clk 0:00:06]}  h4 {[%clk 0:00:10]} 58. Kf5 {[%clk 0:00:06]}  h3 {[%clk 0:00:11]} 59. Kg5 {[%clk 0:00:05]}  h2 {[%clk 0:00:12]} 0-1


[Site "https://www.chess.com"]

[Event "Titled Tuesday Blitz August 22 Early 2023"]
[White "Ruge, Edison"]
[Black "Mostbauer, Florian"]
[WhiteFideId "4401000"]
[BlackFideId "1626671"]
[WhiteElo "2270"]
[BlackElo "2577"]
[Result "1-0"]
[Round "1"]
[TimeControl "180+1"]
[Date "2023.08.22"]
[WhiteClock "0:00:52"]
[BlackClock "0:00:12"]
[Board "189"]

1. e4 {[%clk 0:02:58]}  c6 {[%clk 0:02:59]} 2. d3 {[%clk 0:02:57]}  d5 {[%clk 0:03:00]} 3. Nd2 {[%clk 0:02:57]}  e5 {[%clk 0:02:58]} 4. Ngf3 {[%clk 0:02:58]}  Bd6 {[%clk 0:02:58]} 5. g3 {[%clk 0:02:58]}  f5 {[%clk 0:02:57]} 6. Bg2 {[%clk 0:02:57]}  Nf6 {[%clk 0:02:57]} 7. Qe2 {[%clk 0:02:56]}  O-O {[%clk 0:02:54]} 8. h3 {[%clk 0:02:56]}  Qc7 {[%clk 0:02:49]} 9. O-O {[%clk 0:02:55]}  Na6 {[%clk 0:02:45]} 10. c3 {[%clk 0:02:42]}  Bd7 {[%clk 0:02:36]} 11. b4 {[%clk 0:02:41]}  Rae8 {[%clk 0:02:35]} 12. Bb2 {[%clk 0:02:39]}  Qc8 {[%clk 0:01:59]} 13. Kh2 {[%clk 0:02:37]}  Nc7 {[%clk 0:01:58]} 14. a3 {[%clk 0:02:33]}  a6 {[%clk 0:01:45]} 15. Rae1 {[%clk 0:02:23]}  Rf7 {[%clk 0:01:30]} 16. Ng5 {[%clk 0:02:21]}  Rfe7 {[%clk 0:01:28]} 17. c4 {[%clk 0:02:18]}  Ne6 {[%clk 0:01:11]} 18. Nxe6 {[%clk 0:01:57]}  Bxe6 {[%clk 0:01:12]} 19. exd5 {[%clk 0:01:55]}  cxd5 {[%clk 0:01:12]} 20. c5 {[%clk 0:01:55]}  Bb8 {[%clk 0:01:08]} 21. Bxe5 {[%clk 0:01:55]}  Bf7 {[%clk 0:01:03]} 22. f4 {[%clk 0:01:53]}  Bxe5 {[%clk 0:00:58]} 23. fxe5 {[%clk 0:01:52]}  Rxe5 {[%clk 0:00:55]} 24. Qxe5 {[%clk 0:01:49]}  Rxe5 {[%clk 0:00:56]} 25. Rxe5 {[%clk 0:01:48]}  Qd7 {[%clk 0:00:52]} 26. Rfxf5 {[%clk 0:01:47]}  Qa4 {[%clk 0:00:51]} 27. Re7 {[%clk 0:01:39]}  Qxa3 {[%clk 0:00:46]} 28. Rxb7 {[%clk 0:01:36]}  h6 {[%clk 0:00:30]} 29. Rb8+ {[%clk 0:01:29]}  Kh7 {[%clk 0:00:30]} 30. Rb7 {[%clk 0:01:29]}  Qxd3 {[%clk 0:00:26]} 31. Rf2 {[%clk 0:01:22]}  Be6 {[%clk 0:00:24]} 32. Rxf6 {[%clk 0:01:21]}  Bc8 {[%clk 0:00:19]} 33. Rc7 {[%clk 0:01:12]}  Qxd2 {[%clk 0:00:19]} 34. Rff7 {[%clk 0:01:12]}  Bf5 {[%clk 0:00:16]} 35. Rxf5 {[%clk 0:01:11]}  Qxb4 {[%clk 0:00:16]} 36. Rxd5 {[%clk 0:01:08]}  Kg6 {[%clk 0:00:13]} 37. Rd6+ {[%clk 0:01:06]}  Kf5 {[%clk 0:00:12]} 38. Rf7+ {[%clk 0:01:03]}  Ke5 {[%clk 0:00:13]} 39. Re7+ {[%clk 0:01:03]}  Kf5 {[%clk 0:00:13]} 40. Be4+ {[%clk 0:00:58]}  Kg5 {[%clk 0:00:13]} 41. Rxg7+ {[%clk 0:00:55]}  Kh5 {[%clk 0:00:12]} 42. g4+ {[%clk 0:00:53]}  Kh4 {[%clk 0:00:12]} 43. Rxh6# {[%clk 0:00:52]} 1-0


[Site "https://www.chess.com"]

[Event "Titled Tuesday Blitz August 22 Early 2023"]
[White "Zampronha, Wladimir Camilo"]
[Black "Ganiev, Roman"]
[WhiteFideId "2103087"]
[BlackFideId "4131452"]
[WhiteElo "2268"]
[BlackElo "2576"]
[Result "0-1"]
[Round "1"]
[TimeControl "180+1"]
[Date "2023.08.22"]
[WhiteClock "0:00:00"]
[BlackClock "0:00:40"]
[Board "191"]

1. e4 {[%clk 0:02:58]}  c5 {[%clk 0:02:59]} 2. Nf3 {[%clk 0:02:57]}  d6 {[%clk 0:02:59]} 3. d4 {[%clk 0:02:58]}  cxd4 {[%clk 0:02:55]} 4. Nxd4 {[%clk 0:02:59]}  Nf6 {[%clk 0:02:55]} 5. Nc3 {[%clk 0:02:58]}  a6 {[%clk 0:02:55]} 6. Bg5 {[%clk 0:02:58]}  e6 {[%clk 0:02:53]} 7. f4 {[%clk 0:02:58]}  Be7 {[%clk 0:02:52]} 8. Qf3 {[%clk 0:02:58]}  Qc7 {[%clk 0:02:52]} 9. O-O-O {[%clk 0:02:58]}  Nbd7 {[%clk 0:02:53]} 10. g4 {[%clk 0:02:55]}  b5 {[%clk 0:02:50]} 11. Bxf6 {[%clk 0:02:55]}  Bxf6 {[%clk 0:02:38]} 12. g5 {[%clk 0:02:55]}  Be7 {[%clk 0:02:37]} 13. f5 {[%clk 0:02:55]}  Bxg5+ {[%clk 0:02:32]} 14. Kb1 {[%clk 0:02:55]}  Ne5 {[%clk 0:02:28]} 15. Qh5 {[%clk 0:02:53]}  h6 {[%clk 0:02:03]} 16. Nxe6 {[%clk 0:02:36]}  Bxe6 {[%clk 0:01:55]} 17. fxe6 {[%clk 0:02:37]}  g6 {[%clk 0:01:56]} 18. Nd5 {[%clk 0:02:24]}  Qc5 {[%clk 0:01:38]} 19. exf7+ {[%clk 0:02:20]}  Kxf7 {[%clk 0:01:39]} 20. Qe2 {[%clk 0:02:01]}  Kg7 {[%clk 0:01:25]} 21. h4 {[%clk 0:01:58]}  Bd8 {[%clk 0:01:26]} 22. h5 {[%clk 0:01:58]}  g5 {[%clk 0:01:25]} 23. Bh3 {[%clk 0:01:45]}  Rf8 {[%clk 0:01:24]} 24. Rhf1 {[%clk 0:01:38]}  Qc4 {[%clk 0:01:23]} 25. Qg2 {[%clk 0:00:50]}  Qc5 {[%clk 0:00:49]} 26. Rxf8 {[%clk 0:00:40]}  Kxf8 {[%clk 0:00:50]} 27. Qf1+ {[%clk 0:00:31]}  Kg7 {[%clk 0:00:47]} 28. Qf5 {[%clk 0:00:26]}  Ra7 {[%clk 0:00:47]} 29. Rf1 {[%clk 0:00:17]}  Rf7 {[%clk 0:00:46]} 30. Qe6 {[%clk 0:00:11]}  Rxf1+ {[%clk 0:00:44]} 31. Bxf1 {[%clk 0:00:00]}  Qf2 {[%clk 0:00:40]} 0-1


[Site "https://www.chess.com"]

[Event "Titled Tuesday Blitz August 22 Early 2023"]
[White "Golubev, Mikhail"]
[Black "San Thit Lwin"]
[WhiteFideId "14100983"]
[BlackFideId "13001272"]
[WhiteElo "2575"]
[BlackElo "2268"]
[Result "1-0"]
[Round "1"]
[TimeControl "180+1"]
[Date "2023.08.22"]
[WhiteClock "0:00:07"]
[BlackClock "0:00:00"]
[Board "192"]

1. e3 {[%clk 0:02:43]}  Nf6 {[%clk 0:03:00]} 2. Nf3 {[%clk 0:02:42]}  d5 {[%clk 0:02:59]} 3. c4 {[%clk 0:02:41]}  c6 {[%clk 0:02:58]} 4. Nc3 {[%clk 0:02:37]}  e6 {[%clk 0:02:52]} 5. b3 {[%clk 0:02:30]}  Bd6 {[%clk 0:02:47]} 6. Bb2 {[%clk 0:02:29]}  O-O {[%clk 0:02:47]} 7. d4 {[%clk 0:02:24]}  Nbd7 {[%clk 0:02:47]} 8. Bd3 {[%clk 0:02:23]}  Re8 {[%clk 0:02:47]} 9. O-O {[%clk 0:02:22]}  e5 {[%clk 0:02:42]} 10. dxe5 {[%clk 0:02:03]}  Nxe5 {[%clk 0:02:41]} 11. Nxe5 {[%clk 0:01:43]}  Bxe5 {[%clk 0:02:40]} 12. h3 {[%clk 0:01:43]}  dxc4 {[%clk 0:02:35]} 13. Bxc4 {[%clk 0:01:40]}  Qxd1 {[%clk 0:02:10]} 14. Raxd1 {[%clk 0:01:33]}  Be6 {[%clk 0:02:05]} 15. Bxe6 {[%clk 0:01:32]}  Rxe6 {[%clk 0:02:05]} 16. Rd3 {[%clk 0:01:29]}  Rae8 {[%clk 0:01:55]} 17. Rfd1 {[%clk 0:01:28]}  h6 {[%clk 0:01:46]} 18. Kf1 {[%clk 0:01:26]}  Bxc3 {[%clk 0:01:16]} 19. Bxc3 {[%clk 0:01:20]}  Nd5 {[%clk 0:01:17]} 20. Bd2 {[%clk 0:01:18]}  f5 {[%clk 0:01:14]} 21. Re1 {[%clk 0:01:12]}  Kf7 {[%clk 0:01:13]} 22. f3 {[%clk 0:01:11]}  g5 {[%clk 0:01:12]} 23. Kf2 {[%clk 0:01:09]}  Kg6 {[%clk 0:00:59]} 24. b4 {[%clk 0:01:05]}  R8e7 {[%clk 0:00:57]} 25. b5 {[%clk 0:00:59]}  Nf6 {[%clk 0:00:50]} 26. Bb4 {[%clk 0:00:43]}  Rd7 {[%clk 0:00:46]} 27. Rxd7 {[%clk 0:00:43]}  Nxd7 {[%clk 0:00:46]} 28. Rd1 {[%clk 0:00:40]}  Nf6 {[%clk 0:00:39]} 29. a4 {[%clk 0:00:36]}  cxb5 {[%clk 0:00:37]} 30. axb5 {[%clk 0:00:35]}  Rb6 {[%clk 0:00:38]} 31. Bc5 {[%clk 0:00:33]}  Rxb5 {[%clk 0:00:38]} 32. Bxa7 {[%clk 0:00:33]}  Rb2+ {[%clk 0:00:35]} 33. Kf1 {[%clk 0:00:33]}  Ra2 {[%clk 0:00:18]} 34. Bc5 {[%clk 0:00:29]}  b5 {[%clk 0:00:17]} 35. Rd6 {[%clk 0:00:24]}  Kf7 {[%clk 0:00:16]} 36. Bd4 {[%clk 0:00:22]}  Ne8 {[%clk 0:00:15]} 37. Rxh6 {[%clk 0:00:21]}  Nc7 {[%clk 0:00:11]} 38. Rb6 {[%clk 0:00:18]}  f4 {[%clk 0:00:08]} 39. exf4 {[%clk 0:00:16]}  gxf4 {[%clk 0:00:08]} 40. Rf6+ {[%clk 0:00:15]}  Ke7 {[%clk 0:00:08]} 41. Rxf4 {[%clk 0:00:16]}  Nd5 {[%clk 0:00:07]} 42. Re4+ {[%clk 0:00:16]}  Kf7 {[%clk 0:00:07]} 43. Bc5 {[%clk 0:00:15]}  b4 {[%clk 0:00:06]} 44. Bxb4 {[%clk 0:00:14]}  Nf6 {[%clk 0:00:04]} 45. Rd4 {[%clk 0:00:12]}  Kg6 {[%clk 0:00:04]} 46. Be1 {[%clk 0:00:12]}  Ne8 {[%clk 0:00:03]} 47. g4 {[%clk 0:00:10]}  Nf6 {[%clk 0:00:03]} 48. Bf2 {[%clk 0:00:09]}  Kf7 {[%clk 0:00:03]} 49. Kg2 {[%clk 0:00:09]}  Ke6 {[%clk 0:00:03]} 50. Kg3 {[%clk 0:00:09]}  Nd7 {[%clk 0:00:04]} 51. Re4+ {[%clk 0:00:08]}  Kf7 {[%clk 0:00:01]} 52. Be3 {[%clk 0:00:08]}  Nf6 {[%clk 0:00:01]} 53. Rf4 {[%clk 0:00:07]}  Kg6 {[%clk 0:00:02]} 54. Bd4 {[%clk 0:00:06]}  Nd5 {[%clk 0:00:02]} 55. Re4 {[%clk 0:00:07]}  Kf7 {[%clk 0:00:01]} 56. h4 {[%clk 0:00:07]}  Ne7 {[%clk 0:00:01]} 57. h5 {[%clk 0:00:07]}  Rc2 {[%clk 0:00:01]} 58. Rf4+ {[%clk 0:00:07]}  Ke6 {[%clk 0:00:00]} 59. Rf6+ {[%clk 0:00:07]} 1-0


[Site "https://www.chess.com"]

[Event "Titled Tuesday Blitz August 22 Early 2023"]
[White "Juicy_Fork"]
[Black "Eynullayev, Altay"]
[BlackFideId "13413562"]
[WhiteElo "2267"]
[BlackElo "2574"]
[Result "1-0"]
[Round "1"]
[TimeControl "180+1"]
[Date "2023.08.22"]
[WhiteClock "0:00:07"]
[BlackClock "0:00:00"]
[Board "193"]

1. e4 {[%clk 0:02:59]}  c5 {[%clk 0:02:57]} 2. Nf3 {[%clk 0:02:59]}  d6 {[%clk 0:02:54]} 3. d4 {[%clk 0:02:58]}  cxd4 {[%clk 0:02:55]} 4. Nxd4 {[%clk 0:02:59]}  Nf6 {[%clk 0:02:56]} 5. Nc3 {[%clk 0:02:59]}  a6 {[%clk 0:02:56]} 6. Bd3 {[%clk 0:02:59]}  e5 {[%clk 0:02:54]} 7. Nde2 {[%clk 0:02:59]}  Be7 {[%clk 0:02:55]} 8. O-O {[%clk 0:02:59]}  O-O {[%clk 0:02:55]} 9. h3 {[%clk 0:02:59]}  Be6 {[%clk 0:02:56]} 10. Be3 {[%clk 0:02:59]}  Nbd7 {[%clk 0:02:54]} 11. f4 {[%clk 0:02:59]}  exf4 {[%clk 0:02:25]} 12. Nxf4 {[%clk 0:03:00]}  Ne5 {[%clk 0:02:26]} 13. Qe2 {[%clk 0:02:59]}  Rc8 {[%clk 0:02:24]} 14. Rad1 {[%clk 0:02:56]}  Nfd7 {[%clk 0:02:23]} 15. Nfd5 {[%clk 0:02:48]}  Bg5 {[%clk 0:02:22]} 16. Kh1 {[%clk 0:02:40]}  Bxe3 {[%clk 0:02:19]} 17. Qxe3 {[%clk 0:02:38]}  Re8 {[%clk 0:02:13]} 18. Be2 {[%clk 0:02:25]}  Nc4 {[%clk 0:02:01]} 19. Bxc4 {[%clk 0:02:21]}  Rxc4 {[%clk 0:02:01]} 20. Nf4 {[%clk 0:02:22]}  Ne5 {[%clk 0:01:57]} 21. Rd2 {[%clk 0:02:13]}  Rc6 {[%clk 0:01:55]} 22. Rdf2 {[%clk 0:02:04]}  Qb6 {[%clk 0:01:43]} 23. Qg3 {[%clk 0:01:56]}  Qd8 {[%clk 0:01:35]} 24. Ncd5 {[%clk 0:01:39]}  Ng6 {[%clk 0:01:23]} 25. Nxe6 {[%clk 0:01:12]}  fxe6 {[%clk 0:01:23]} 26. Nf4 {[%clk 0:01:12]}  Nxf4 {[%clk 0:01:06]} 27. Qxf4 {[%clk 0:01:00]}  Qe7 {[%clk 0:01:03]} 28. e5 {[%clk 0:00:57]}  d5 {[%clk 0:00:58]} 29. Qg3 {[%clk 0:00:51]}  Rcc8 {[%clk 0:00:53]} 30. c3 {[%clk 0:00:37]}  Rf8 {[%clk 0:00:51]} 31. Qg4 {[%clk 0:00:34]}  Rxf2 {[%clk 0:00:48]} 32. Rxf2 {[%clk 0:00:35]}  Rf8 {[%clk 0:00:47]} 33. Rxf8+ {[%clk 0:00:35]}  Kxf8 {[%clk 0:00:48]} 34. Qf4+ {[%clk 0:00:32]}  Ke8 {[%clk 0:00:47]} 35. Qe3 {[%clk 0:00:29]}  Kd7 {[%clk 0:00:41]} 36. Qa7 {[%clk 0:00:24]}  Kc6 {[%clk 0:00:39]} 37. Qa8 {[%clk 0:00:23]}  Qd7 {[%clk 0:00:30]} 38. Qg8 {[%clk 0:00:20]}  h6 {[%clk 0:00:28]} 39. Qf8 {[%clk 0:00:17]}  Kb6 {[%clk 0:00:25]} 40. Qb4+ {[%clk 0:00:16]}  Ka7 {[%clk 0:00:24]} 41. Qc5+ {[%clk 0:00:17]}  b6 {[%clk 0:00:24]} 42. Qf8 {[%clk 0:00:17]}  Kb7 {[%clk 0:00:25]} 43. b3 {[%clk 0:00:15]}  Qc7 {[%clk 0:00:21]} 44. Qf4 {[%clk 0:00:13]}  b5 {[%clk 0:00:08]} 45. a4 {[%clk 0:00:11]}  bxa4 {[%clk 0:00:06]} 46. bxa4 {[%clk 0:00:12]}  a5 {[%clk 0:00:00]} 47. Qd4 {[%clk 0:00:07]} 1-0


[Site "https://www.chess.com"]

[Event "Titled Tuesday Blitz August 22 Early 2023"]
[White "Hoffmann, Asa"]
[Black "Garakov, Mikhael"]
[WhiteFideId "2001470"]
[BlackFideId "4169034"]
[WhiteElo "2265"]
[BlackElo "2571"]
[Result "0-1"]
[Round "1"]
[TimeControl "180+1"]
[Date "2023.08.22"]
[WhiteClock "0:00:55"]
[BlackClock "0:00:17"]
[Board "195"]

1. d4 {[%clk 0:02:55]}  c5 {[%clk 0:02:59]} 2. dxc5 {[%clk 0:02:54]}  Na6 {[%clk 0:02:58]} 3. e4 {[%clk 0:02:53]}  Nxc5 {[%clk 0:02:57]} 4. Nc3 {[%clk 0:02:52]}  e6 {[%clk 0:02:55]} 5. Be3 {[%clk 0:02:51]}  Nf6 {[%clk 0:02:52]} 6. f3 {[%clk 0:02:51]}  Qc7 {[%clk 0:02:40]} 7. Qd2 {[%clk 0:02:46]}  a6 {[%clk 0:02:39]} 8. O-O-O {[%clk 0:02:44]}  b5 {[%clk 0:02:36]} 9. Kb1 {[%clk 0:02:42]}  b4 {[%clk 0:02:36]} 10. Nce2 {[%clk 0:02:41]}  Rb8 {[%clk 0:02:30]} 11. Bf4 {[%clk 0:02:34]}  e5 {[%clk 0:02:30]} 12. Bg5 {[%clk 0:02:31]}  d6 {[%clk 0:02:24]} 13. Nc1 {[%clk 0:02:29]}  Be6 {[%clk 0:02:19]} 14. Nb3 {[%clk 0:02:23]}  Nfd7 {[%clk 0:02:18]} 15. Ne2 {[%clk 0:02:14]}  a5 {[%clk 0:02:16]} 16. Nec1 {[%clk 0:02:13]}  a4 {[%clk 0:02:16]} 17. Nxc5 {[%clk 0:02:11]}  Nxc5 {[%clk 0:02:16]} 18. Be2 {[%clk 0:02:08]}  b3 {[%clk 0:02:14]} 19. cxb3 {[%clk 0:02:06]}  axb3 {[%clk 0:02:14]} 20. a3 {[%clk 0:02:06]}  h6 {[%clk 0:02:08]} 21. Bh4 {[%clk 0:02:05]}  Rc8 {[%clk 0:01:47]} 22. Nd3 {[%clk 0:02:01]}  g5 {[%clk 0:01:20]} 23. Bf2 {[%clk 0:01:59]}  Be7 {[%clk 0:01:20]} 24. Rc1 {[%clk 0:01:59]}  O-O {[%clk 0:01:18]} 25. Nxc5 {[%clk 0:01:58]}  dxc5 {[%clk 0:01:18]} 26. Bc4 {[%clk 0:01:58]}  Qb6 {[%clk 0:01:12]} 27. Qc3 {[%clk 0:01:55]}  Bxc4 {[%clk 0:01:04]} 28. Qxc4 {[%clk 0:01:54]}  Rfd8 {[%clk 0:01:03]} 29. h4 {[%clk 0:01:53]}  Rd2 {[%clk 0:00:59]} 30. Be3 {[%clk 0:01:48]}  Rxg2 {[%clk 0:00:59]} 31. hxg5 {[%clk 0:01:48]}  Bxg5 {[%clk 0:00:55]} 32. Bxg5 {[%clk 0:01:47]}  hxg5 {[%clk 0:00:55]} 33. Rcg1 {[%clk 0:01:47]}  Rxg1+ {[%clk 0:00:51]} 34. Rxg1 {[%clk 0:01:46]}  Qf6 {[%clk 0:00:49]} 35. Qxb3 {[%clk 0:01:45]}  Kg7 {[%clk 0:00:45]} 36. Qe3 {[%clk 0:01:44]}  Kg6 {[%clk 0:00:44]} 37. Rc1 {[%clk 0:01:33]}  c4 {[%clk 0:00:43]} 38. Qe2 {[%clk 0:01:30]}  Qf4 {[%clk 0:00:31]} 39. Rc3 {[%clk 0:01:26]}  Rd8 {[%clk 0:00:24]} 40. Qxc4 {[%clk 0:01:19]}  Rd2 {[%clk 0:00:23]} 41. a4 {[%clk 0:01:14]}  Qh2 {[%clk 0:00:20]} 42. Rb3 {[%clk 0:01:10]}  Qg1+ {[%clk 0:00:17]} 43. Ka2 {[%clk 0:01:09]}  Rd1 {[%clk 0:00:18]} 44. Rb6+ {[%clk 0:01:09]}  Kg7 {[%clk 0:00:17]} 45. Qc3 {[%clk 0:01:05]}  Qxb6 {[%clk 0:00:15]} 46. Qxe5+ {[%clk 0:01:05]}  Qf6 {[%clk 0:00:15]} 47. Qxf6+ {[%clk 0:01:00]}  Kxf6 {[%clk 0:00:16]} 48. a5 {[%clk 0:01:00]}  Ke5 {[%clk 0:00:16]} 49. b4 {[%clk 0:01:00]}  Kd4 {[%clk 0:00:16]} 50. Kb3 {[%clk 0:01:00]}  Rb1+ {[%clk 0:00:16]} 51. Ka4 {[%clk 0:01:00]}  Kc4 {[%clk 0:00:16]} 52. b5 {[%clk 0:00:59]}  Rxb5 {[%clk 0:00:16]} 53. a6 {[%clk 0:00:58]}  Rb1 {[%clk 0:00:16]} 54. Ka5 {[%clk 0:00:55]}  Kc5 {[%clk 0:00:17]} 0-1


[Site "https://www.chess.com"]